[Event "Live Chess"]
[Site "Chess.com"]
[Date "2024.06.02"]
[Round "-"]
[White "Dhaydon19"]
[Black "FlyingChessKestrel13"]
[Result "1-0"]
[WhiteElo "2642"]
[BlackElo "2081"]
[TimeControl "300"]
[EndTime "5:40:42 PDT"]
[Termination "Dhaydon19 won by resignation"]

1. d4 {[%clk 0:04:58.1]} 1... d5 {[%clk 0:04:58.9]} 2. Nf3 {[%clk 0:04:57.7]}
2... Nf6 {[%clk 0:04:57.7]} 3. g3 {[%clk 0:04:57]} 3... Bf5 {[%clk 0:04:56.1]}
4. c3 {[%clk 0:04:56.7]} 4... c6 {[%clk 0:04:55.1]} 5. Bg2 {[%clk 0:04:56.4]}
5... e6 {[%clk 0:04:54.2]} 6. O-O {[%clk 0:04:56.1]} 6... Bd6 {[%clk 0:04:53.2]}
7. Nbd2 {[%clk 0:04:55.5]} 7... O-O {[%clk 0:04:52.1]} 8. Re1 {[%clk 0:04:54.1]}
8... Nbd7 {[%clk 0:04:48.8]} 9. Nh4 {[%clk 0:04:53.4]} 9... Bg6 {[%clk 0:04:46]}
10. Nxg6 {[%clk 0:04:52]} 10... hxg6 {[%clk 0:04:45.6]} 11. e4 {[%clk
0:04:51.8]} 11... dxe4 {[%clk 0:04:44.5]} 12. Nxe4 {[%clk 0:04:51.4]} 12... Nxe4
{[%clk 0:04:44]} 13. Bxe4 {[%clk 0:04:49.9]} 13... Nf6 {[%clk 0:04:43.7]} 14.
Bf3 {[%clk 0:04:48.9]} 14... Qc7 {[%clk 0:04:42.2]} 15. Qb3 {[%clk 0:04:47.7]}
15... b6 {[%clk 0:04:38.5]} 16. Qc4 {[%clk 0:04:44.6]} 16... Rac8 {[%clk
0:04:37.4]} 17. a4 {[%clk 0:04:43.4]} 17... c5 {[%clk 0:04:35.4]} 18. dxc5
{[%clk 0:04:39.7]} 18... Bxc5 {[%clk 0:04:34]} 19. Qe2 {[%clk 0:04:39.3]} 19...
a5 {[%clk 0:04:31.3]} 20. Bf4 {[%clk 0:04:36.3]} 20... Qe7 {[%clk 0:04:25.8]}
21. Rad1 {[%clk 0:04:34.1]} 21... Rfd8 {[%clk 0:04:24.6]} 22. Kg2 {[%clk
0:04:28.9]} 22... Rxd1 {[%clk 0:04:22.8]} 23. Rxd1 {[%clk 0:04:26.7]} 23... Rd8
{[%clk 0:04:21.5]} 24. Rxd8+ {[%clk 0:04:22.3]} 24... Qxd8 {[%clk 0:04:20.6]}
25. Qc4 {[%clk 0:04:19.8]} 25... Qd7 {[%clk 0:04:13.9]} 26. Qb5 {[%clk
0:04:15.1]} 26... Qxb5 {[%clk 0:04:12.3]} 27. axb5 {[%clk 0:04:12.9]} 27... Nd5
{[%clk 0:04:11.6]} 28. Bd2 {[%clk 0:04:03.2]} 28... a4 {[%clk 0:04:09.5]} 29.
Kf1 {[%clk 0:03:50.6]} 29... a3 {[%clk 0:03:50]} 30. bxa3 {[%clk 0:03:48]} 30...
Bxa3 {[%clk 0:03:48.1]} 31. Bxd5 {[%clk 0:03:47.3]} 31... exd5 {[%clk
0:03:46.9]} 32. Be3 {[%clk 0:03:46.5]} 32... Kf8 {[%clk 0:03:25.7]} 33. Bxb6
{[%clk 0:03:44.4]} 33... Ke8 {[%clk 0:03:25.3]} 34. Bd4 {[%clk 0:03:43]} 34...
f6 {[%clk 0:03:21.2]} 35. Ke2 {[%clk 0:03:41.8]} 35... Kd7 {[%clk 0:03:20.8]}
36. Kd3 {[%clk 0:03:41.5]} 36... Kd6 {[%clk 0:03:17.9]} 37. f3 {[%clk
0:03:38.5]} 37... g5 {[%clk 0:03:11.4]} 38. h4 {[%clk 0:03:32.4]} 38... gxh4
{[%clk 0:03:10.1]} 39. gxh4 {[%clk 0:03:31.7]} 39... Ke6 {[%clk 0:03:07]} 40. h5
{[%clk 0:03:26.7]} 40... Bd6 {[%clk 0:02:56.8]} 41. b6 {[%clk 0:03:23.4]} 41...
Kd7 {[%clk 0:02:55.8]} 42. c4 {[%clk 0:03:17.4]} 42... dxc4+ {[%clk 0:02:53.4]}
43. Kxc4 {[%clk 0:03:16.4]} 43... Kc6 {[%clk 0:02:53]} 44. b7 {[%clk 0:03:12.5]}
44... Kxb7 {[%clk 0:02:03.4]} 45. Kd5 {[%clk 0:03:09.7]} 45... Bf4 {[%clk
0:01:53]} 46. Ke4 {[%clk 0:03:05]} 46... Bh6 {[%clk 0:01:49.8]} 47. Kf5 {[%clk
0:03:04.1]} 47... Kc6 {[%clk 0:01:48.6]} 48. Kg6 {[%clk 0:03:03.7]} 48... Kd5
{[%clk 0:01:33.2]} 49. Bxf6 {[%clk 0:03:01.3]} 49... Bf4 {[%clk 0:01:32.3]} 50.
Bxg7 {[%clk 0:02:59.1]} 50... Ke6 {[%clk 0:01:31.5]} 51. h6 {[%clk 0:02:57.4]}
51... Bxh6 {[%clk 0:01:25.2]} 52. Bxh6 {[%clk 0:02:56.5]} 52... Ke5 {[%clk
0:01:24.5]} 53. f4+ {[%clk 0:02:56.2]} 53... Ke6 {[%clk 0:01:22.9]} 54. f5+
{[%clk 0:02:55.9]} 54... Ke7 {[%clk 0:01:22.5]} 55. f6+ {[%clk 0:02:55.6]} 1-0

[Event "Live Chess"]
[Site "Chess.com"]
[Date "2024.06.02"]
[Round "-"]
[White "AlanBstard10"]
[Black "Ferrarifan27"]
[Result "0-1"]
[WhiteElo "1228"]
[BlackElo "2160"]
[TimeControl "300"]
[EndTime "5:40:48 PDT"]
[Termination "Ferrarifan27 won by resignation"]

1. Nf3 {[%clk 0:04:53.8]} 1... Nf6 {[%clk 0:04:55.2]} 2. c4 {[%clk 0:04:53]}
2... e6 {[%clk 0:04:53.5]} 3. Nc3 {[%clk 0:04:46.9]} 3... d5 {[%clk 0:04:52.8]}
4. cxd5 {[%clk 0:04:45.3]} 4... exd5 {[%clk 0:04:52]} 5. b3 {[%clk 0:04:44]}
5... c6 {[%clk 0:04:47]} 6. Bb2 {[%clk 0:04:43.1]} 6... Bd6 {[%clk 0:04:44.4]}
7. e3 {[%clk 0:04:40.2]} 7... O-O {[%clk 0:04:43.1]} 8. g3 {[%clk 0:04:39]} 8...
Bg4 {[%clk 0:04:41.3]} 9. Bg2 {[%clk 0:04:36.7]} 9... Nbd7 {[%clk 0:04:40.4]}
10. h3 {[%clk 0:04:35.5]} 10... Bh5 {[%clk 0:04:38]} 11. O-O {[%clk 0:04:33.1]}
11... Ne5 {[%clk 0:04:36.9]} 12. d4 {[%clk 0:04:26.7]} 12... Nxf3+ {[%clk
0:04:26.1]} 13. Bxf3 {[%clk 0:04:24.6]} 13... Bxf3 {[%clk 0:04:25.1]} 14. Qxf3
{[%clk 0:04:23.6]} 14... Re8 {[%clk 0:04:23.3]} 15. Rfe1 {[%clk 0:04:21.5]}
15... Qc7 {[%clk 0:04:22]} 16. Ne2 {[%clk 0:04:16.1]} 16... Ne4 {[%clk 0:04:18]}
17. Kg2 {[%clk 0:04:09.9]} 17... g6 {[%clk 0:04:06.9]} 18. a4 {[%clk 0:04:06]}
18... Nd2 {[%clk 0:04:03.2]} 19. Qg4 {[%clk 0:03:56.8]} 19... Nxb3 {[%clk
0:03:58.4]} 20. Ba3 {[%clk 0:03:54.1]} 20... Nxa1 {[%clk 0:03:56.4]} 21. Bxd6
{[%clk 0:03:51.8]} 21... Qxd6 {[%clk 0:03:54.6]} 22. Rxa1 {[%clk 0:03:50.8]}
22... f5 {[%clk 0:03:52]} 23. Qg5 {[%clk 0:03:35.9]} 23... Kg7 {[%clk
0:03:49.4]} 24. Nf4 {[%clk 0:03:34.5]} 24... Qe7 {[%clk 0:03:45]} 25. Qxe7+
{[%clk 0:03:18.6]} 25... Rxe7 {[%clk 0:03:43.4]} 26. Rb1 {[%clk 0:03:17.9]}
26... a6 {[%clk 0:03:41.8]} 27. Nd3 {[%clk 0:03:13.8]} 27... b5 {[%clk
0:03:39.9]} 28. axb5 {[%clk 0:03:11.5]} 28... axb5 {[%clk 0:03:37.5]} 29. Nc5
{[%clk 0:03:11.1]} 29... Rea7 {[%clk 0:03:34.1]} 30. Rc1 {[%clk 0:03:07.4]}
30... Ra1 {[%clk 0:03:31.2]} 31. Rc2 {[%clk 0:03:03.7]} 31... R8a2 {[%clk
0:03:29.6]} 32. Rc3 {[%clk 0:02:57.7]} 32... Ra3 {[%clk 0:03:21.9]} 33. Rc2
{[%clk 0:02:55.1]} 33... R1a2 {[%clk 0:03:20.5]} 34. Rc1 {[%clk 0:02:53.2]}
34... Rxe3 {[%clk 0:03:18.7]} 35. Nb7 {[%clk 0:02:44.1]} 35... Ree2 {[%clk
0:03:10.2]} 36. Rxc6 {[%clk 0:02:39.8]} 36... Rxf2+ {[%clk 0:03:08.9]} 37. Kg1
{[%clk 0:02:38.3]} 37... Rfc2 {[%clk 0:03:06.7]} 38. Rxc2 {[%clk 0:02:31.2]}
38... Rxc2 {[%clk 0:03:06.6]} 39. Nc5 {[%clk 0:02:28.3]} 39... b4 {[%clk
0:03:03.8]} 40. Kf1 {[%clk 0:02:24.6]} 40... Rxc5 {[%clk 0:02:58.3]} 41. dxc5
{[%clk 0:02:23.2]} 41... b3 {[%clk 0:02:57.7]} 42. Ke1 {[%clk 0:02:21.6]} 42...
b2 {[%clk 0:02:56.8]} 43. Kd1 {[%clk 0:02:21.2]} 43... b1=Q+ {[%clk 0:02:55.9]}
0-1

[Event "Live Chess"]
[Site "Chess.com"]
[Date "2024.06.02"]
[Round "-"]
[White "alicechristina"]
[Black "CarmelJane"]
[Result "1-0"]
[WhiteElo "1940"]
[BlackElo "2000"]
[TimeControl "300"]
[EndTime "5:41:01 PDT"]
[Termination "alicechristina won by resignation"]

1. c4 {[%clk 0:04:55.6]} 1... e5 {[%clk 0:04:56.8]} 2. Nc3 {[%clk 0:04:54.3]}
2... Nf6 {[%clk 0:04:55.5]} 3. g3 {[%clk 0:04:53.6]} 3... Nc6 {[%clk 0:04:48.9]}
4. Bg2 {[%clk 0:04:50.6]} 4... Bb4 {[%clk 0:04:48.5]} 5. e4 {[%clk 0:04:48.6]}
5... Bxc3 {[%clk 0:04:47.6]} 6. bxc3 {[%clk 0:04:47]} 6... d6 {[%clk 0:04:45.3]}
7. Ne2 {[%clk 0:04:44.8]} 7... Be6 {[%clk 0:04:44.2]} 8. d3 {[%clk 0:04:41.1]}
8... O-O {[%clk 0:04:39.9]} 9. O-O {[%clk 0:04:39]} 9... h6 {[%clk 0:04:25.5]}
10. f4 {[%clk 0:04:32.7]} 10... exf4 {[%clk 0:03:59.9]} 11. Nxf4 {[%clk
0:04:26.8]} 11... Ne5 {[%clk 0:03:51.1]} 12. Nxe6 {[%clk 0:04:24.1]} 12... fxe6
{[%clk 0:03:46.5]} 13. Bf4 {[%clk 0:04:19.6]} 13... Nc6 {[%clk 0:03:40.1]} 14.
d4 {[%clk 0:04:16.3]} 14... Na5 {[%clk 0:03:12.3]} 15. Qd3 {[%clk 0:04:10.2]}
15... e5 {[%clk 0:02:45.5]} 16. Be3 {[%clk 0:04:06.8]} 16... Qe7 {[%clk
0:02:34.6]} 17. Rab1 {[%clk 0:04:04.9]} 17... Ng4 {[%clk 0:02:31.5]} 18. Bd2
{[%clk 0:04:01.2]} 18... Rxf1+ {[%clk 0:02:28.9]} 19. Rxf1 {[%clk 0:03:59.5]}
19... Rf8 {[%clk 0:02:26.4]} 20. Rxf8+ {[%clk 0:03:56.3]} 20... Qxf8 {[%clk
0:02:26.3]} 21. Qe2 {[%clk 0:03:48.4]} 21... Nf6 {[%clk 0:02:12.6]} 22. Qf3
{[%clk 0:03:31.9]} 22... Nxc4 {[%clk 0:02:04.6]} 23. Bc1 {[%clk 0:03:24.7]}
23... Qe8 {[%clk 0:01:59.8]} 24. Bf1 {[%clk 0:03:19.2]} 24... Nb6 {[%clk
0:01:52.3]} 25. d5 {[%clk 0:03:07.4]} 25... Qa4 {[%clk 0:01:47.1]} 26. Bd3
{[%clk 0:03:00.8]} 26... Qxa2 {[%clk 0:01:44.6]} 27. Bxh6 {[%clk 0:02:58.2]}
27... Qa1+ {[%clk 0:01:36.2]} 28. Bf1 {[%clk 0:02:50.6]} 28... Nbd7 {[%clk
0:01:26.3]} 29. Bd2 {[%clk 0:02:45.8]} 29... a5 {[%clk 0:01:23.3]} 30. g4 {[%clk
0:02:41]} 30... Qb2 {[%clk 0:01:19.6]} 31. Bg5 {[%clk 0:02:18.1]} 31... a4
{[%clk 0:01:11]} 32. Bxf6 {[%clk 0:02:17.2]} 32... Nxf6 {[%clk 0:01:09.9]} 33.
g5 {[%clk 0:02:16.8]} 33... Nd7 {[%clk 0:01:07.5]} 34. Qf5 {[%clk 0:02:10.8]}
34... Nc5 {[%clk 0:00:57.9]} 35. g6 {[%clk 0:02:05.2]} 35... Nd7 {[%clk
0:00:17.4]} 36. Qf7+ {[%clk 0:01:59.5]} 36... Kh8 {[%clk 0:00:16.4]} 37. Qe8+
{[%clk 0:01:58.5]} 1-0

[Event "Live Chess"]
[Site "Chess.com"]
[Date "2024.06.02"]
[Round "-"]
[White "MagnersCarlsberg2870"]
[Black "Bradfield133"]
[Result "0-1"]
[WhiteElo "1755"]
[BlackElo "1846"]
[TimeControl "300"]
[EndTime "5:41:23 PDT"]
[Termination "Bradfield133 won by resignation"]

1. Nf3 {[%clk 0:04:56.8]} 1... d6 {[%clk 0:04:53.7]} 2. b3 {[%clk 0:04:52.4]}
2... e5 {[%clk 0:04:49]} 3. e4 {[%clk 0:04:50.8]} 3... Bg4 {[%clk 0:04:37.5]} 4.
Bc4 {[%clk 0:04:49.1]} 4... Nf6 {[%clk 0:04:30.6]} 5. h3 {[%clk 0:04:45.4]} 5...
Bh5 {[%clk 0:04:26.1]} 6. g4 {[%clk 0:04:44.3]} 6... Bg6 {[%clk 0:04:24.1]} 7.
Nc3 {[%clk 0:04:43]} 7... Nxe4 {[%clk 0:04:18.4]} 8. Nxe4 {[%clk 0:04:40.1]}
8... Bxe4 {[%clk 0:04:16.6]} 9. d3 {[%clk 0:04:39.3]} 9... Bxf3 {[%clk 0:04:05]}
10. Qxf3 {[%clk 0:04:37.9]} 10... f6 {[%clk 0:03:53.9]} 11. Qxb7 {[%clk
0:04:35.3]} 11... Nd7 {[%clk 0:03:52.7]} 12. Qd5 {[%clk 0:04:28.4]} 12... Qb8
{[%clk 0:03:42]} 13. Qf7+ {[%clk 0:04:24.4]} 13... Kd8 {[%clk 0:03:40.9]} 14.
Bd5 {[%clk 0:04:11.3]} 14... Nc5 {[%clk 0:03:00.6]} 15. Bc6 {[%clk 0:04:04.8]}
15... Be7 {[%clk 0:02:52]} 16. Ba3 {[%clk 0:04:01.2]} 16... Qb6 {[%clk
0:02:42.4]} 17. Bxc5 {[%clk 0:03:53.6]} 17... Qxc6 {[%clk 0:02:39.4]} 18. Be3
{[%clk 0:03:42.4]} 18... Qxh1+ {[%clk 0:02:34.8]} 19. Kd2 {[%clk 0:03:40.5]}
19... Qxa1 {[%clk 0:02:32.1]} 20. Qd5 {[%clk 0:03:39.3]} 20... Rc8 {[%clk
0:02:24.3]} 0-1

[Event "Live Chess"]
[Site "Chess.com"]
[Date "2024.06.02"]
[Round "-"]
[White "slava_ukr"]
[Black "Queensandpawns"]
[Result "1-0"]
[WhiteElo "2361"]
[BlackElo "2274"]
[TimeControl "300"]
[EndTime "5:41:43 PDT"]
[Termination "slava_ukr won by resignation"]

1. e4 {[%clk 0:04:58.1]} 1... e5 {[%clk 0:04:58]} 2. Nf3 {[%clk 0:04:56.9]} 2...
Nf6 {[%clk 0:04:57.4]} 3. Nxe5 {[%clk 0:04:55.7]} 3... Nc6 {[%clk 0:04:57]} 4.
Nxc6 {[%clk 0:04:53.5]} 4... dxc6 {[%clk 0:04:56.9]} 5. d3 {[%clk 0:04:53]} 5...
Bc5 {[%clk 0:04:56.2]} 6. Be2 {[%clk 0:04:50.5]} 6... h5 {[%clk 0:04:55.2]} 7.
h3 {[%clk 0:04:48.6]} 7... Be6 {[%clk 0:04:53]} 8. Nc3 {[%clk 0:04:47.4]} 8...
Bb6 {[%clk 0:04:52.6]} 9. Bg5 {[%clk 0:04:45.6]} 9... Qd6 {[%clk 0:04:51.3]} 10.
Qd2 {[%clk 0:04:44.5]} 10... O-O-O {[%clk 0:04:46.4]} 11. Be3 {[%clk 0:04:35.5]}
11... c5 {[%clk 0:04:42.2]} 12. O-O-O {[%clk 0:04:32.7]} 12... Nd7 {[%clk
0:04:38.7]} 13. f4 {[%clk 0:04:27.8]} 13... f6 {[%clk 0:04:32.1]} 14. g4 {[%clk
0:04:26.2]} 14... h4 {[%clk 0:04:24.6]} 15. Rhg1 {[%clk 0:04:18.2]} 15... c4
{[%clk 0:04:22.8]} 16. d4 {[%clk 0:04:12.3]} 16... c6 {[%clk 0:04:03.9]} 17. f5
{[%clk 0:04:11]} 17... Bf7 {[%clk 0:04:01.4]} 18. g5 {[%clk 0:04:06.7]} 18...
Qb4 {[%clk 0:03:59.4]} 19. a3 {[%clk 0:04:03.8]} 19... Qa4 {[%clk 0:03:57.4]}
20. Nxa4 {[%clk 0:04:01.8]} 20... Bc7 {[%clk 0:03:40.7]} 21. Bf4 {[%clk
0:03:59.4]} 1-0

[Event "Live Chess"]
[Site "Chess.com"]
[Date "2024.06.02"]
[Round "-"]
[White "gmnorfolk"]
[Black "dmitro74"]
[Result "1-0"]
[WhiteElo "2151"]
[BlackElo "1724"]
[TimeControl "300"]
[EndTime "5:42:03 PDT"]
[Termination "gmnorfolk won by resignation"]

1. c4 {[%clk 0:04:57.9]} 1... e5 {[%clk 0:04:58.5]} 2. Nc3 {[%clk 0:04:55.6]}
2... Nf6 {[%clk 0:04:54.1]} 3. Nf3 {[%clk 0:04:53.6]} 3... Nc6 {[%clk
0:04:51.6]} 4. g3 {[%clk 0:04:52.7]} 4... d6 {[%clk 0:04:46.1]} 5. Bg2 {[%clk
0:04:48.6]} 5... Be7 {[%clk 0:04:42.5]} 6. O-O {[%clk 0:04:47.3]} 6... O-O
{[%clk 0:04:41]} 7. e3 {[%clk 0:04:41.3]} 7... Be6 {[%clk 0:04:32.2]} 8. b3
{[%clk 0:04:39.7]} 8... d5 {[%clk 0:04:25.1]} 9. cxd5 {[%clk 0:04:35.7]} 9...
Nxd5 {[%clk 0:04:20.5]} 10. Nxd5 {[%clk 0:04:33.1]} 10... Bxd5 {[%clk
0:04:18.8]} 11. Bb2 {[%clk 0:04:32.6]} 11... Bf6 {[%clk 0:04:14.2]} 12. d4
{[%clk 0:04:29.6]} 12... exd4 {[%clk 0:04:09.2]} 13. Nxd4 {[%clk 0:04:28.3]}
13... Bxg2 {[%clk 0:04:06.8]} 14. Kxg2 {[%clk 0:04:26.4]} 14... Nxd4 {[%clk
0:04:05.1]} 15. Bxd4 {[%clk 0:04:18.7]} 15... Bxd4 {[%clk 0:04:03]} 16. Qxd4
{[%clk 0:04:11.9]} 16... Qxd4 {[%clk 0:04:01.3]} 17. exd4 {[%clk 0:04:11.8]}
17... c6 {[%clk 0:04:00.4]} 18. Rfd1 {[%clk 0:04:08.1]} 18... Rad8 {[%clk
0:03:57.1]} 19. Rd3 {[%clk 0:04:06.6]} 19... Rfe8 {[%clk 0:03:53.2]} 20. Rad1
{[%clk 0:04:04.8]} 20... Rd5 {[%clk 0:03:50.8]} 21. Re3 {[%clk 0:04:02.1]} 21...
Kf8 {[%clk 0:03:47.3]} 22. Rde1 {[%clk 0:03:57.6]} 22... Rdd8 {[%clk 0:03:15.9]}
23. Kf3 {[%clk 0:03:51.1]} 23... Rxe3+ {[%clk 0:02:54.3]} 24. fxe3 {[%clk
0:03:48.9]} 24... f5 {[%clk 0:02:53.4]} 25. Kf4 {[%clk 0:03:47.5]} 25... g6
{[%clk 0:02:48.4]} 26. g4 {[%clk 0:03:46.3]} 26... fxg4 {[%clk 0:02:46.3]} 27.
Kxg4 {[%clk 0:03:46.2]} 27... Kg7 {[%clk 0:02:44.4]} 28. h4 {[%clk 0:03:39.8]}
28... Rd5 {[%clk 0:02:37.2]} 29. Rd1 {[%clk 0:03:36.3]} 29... h5+ {[%clk
0:02:30.3]} 30. Kg3 {[%clk 0:03:32.1]} 30... g5 {[%clk 0:02:22]} 31. e4 {[%clk
0:03:23.7]} 31... gxh4+ {[%clk 0:02:19.6]} 32. Kxh4 {[%clk 0:03:19.6]} 32... Ra5
{[%clk 0:02:17.6]} 33. Rd2 {[%clk 0:03:16.1]} 33... Kh6 {[%clk 0:02:13.7]} 34.
e5 {[%clk 0:03:06.1]} 34... Rd5 {[%clk 0:02:11.7]} 35. b4 {[%clk 0:02:44.1]}
35... b6 {[%clk 0:02:02.5]} 36. Kg3 {[%clk 0:02:29.7]} 36... c5 {[%clk
0:01:57.8]} 37. e6 {[%clk 0:02:08.6]} 37... cxd4 {[%clk 0:01:41.2]} 38. Re2
{[%clk 0:01:59.5]} 38... Rd8 {[%clk 0:01:33.7]} 39. Kf4 {[%clk 0:01:53.4]} 39...
Kg6 {[%clk 0:01:24.3]} 40. Ke5 {[%clk 0:01:47.5]} 40... d3 {[%clk 0:01:22.9]}
41. Rg2+ {[%clk 0:01:42.9]} 41... Kh7 {[%clk 0:01:17.1]} 42. e7 {[%clk
0:01:40.9]} 42... Re8 {[%clk 0:01:13.9]} 43. Kf6 {[%clk 0:01:38.2]} 43... Rc8
{[%clk 0:00:52.8]} 44. Kf7 {[%clk 0:01:32.4]} 44... Rc7 {[%clk 0:00:45.3]} 45.
Kf8 {[%clk 0:01:27.9]} 45... Rc8+ {[%clk 0:00:30.9]} 46. e8=Q {[%clk 0:01:27.1]}
46... Rxe8+ {[%clk 0:00:29.8]} 47. Kxe8 {[%clk 0:01:26.7]} 47... h4 {[%clk
0:00:28.4]} 48. Rh2 {[%clk 0:01:23.9]} 48... Kg6 {[%clk 0:00:26]} 49. Rxh4
{[%clk 0:01:22.8]} 49... Kf5 {[%clk 0:00:23.8]} 50. Rd4 {[%clk 0:01:22.3]} 1-0

[Event "Live Chess"]
[Site "Chess.com"]
[Date "2024.06.02"]
[Round "-"]
[White "degringolade64"]
[Black "halfberg"]
[Result "1-0"]
[WhiteElo "2134"]
[BlackElo "1879"]
[TimeControl "300"]
[EndTime "5:42:08 PDT"]
[Termination "degringolade64 won by resignation"]

1. e4 {[%clk 0:04:55.3]} 1... c5 {[%clk 0:04:58.9]} 2. Nf3 {[%clk 0:04:52.6]}
2... Nc6 {[%clk 0:04:58.4]} 3. Bb5 {[%clk 0:04:50.5]} 3... Nd4 {[%clk
0:04:55.5]} 4. Nxd4 {[%clk 0:04:48.9]} 4... cxd4 {[%clk 0:04:55.4]} 5. O-O
{[%clk 0:04:47.7]} 5... a6 {[%clk 0:04:54.8]} 6. Bc4 {[%clk 0:04:44.9]} 6... b5
{[%clk 0:04:54.2]} 7. Bxf7+ {[%clk 0:04:43.4]} 7... Kxf7 {[%clk 0:04:51.8]} 8.
Qh5+ {[%clk 0:04:42.2]} 8... g6 {[%clk 0:04:31.6]} 9. Qd5+ {[%clk 0:04:40.3]}
9... e6 {[%clk 0:04:26.5]} 10. Qxa8 {[%clk 0:04:38]} 10... Be7 {[%clk
0:04:16.6]} 11. d3 {[%clk 0:04:23.9]} 11... Nf6 {[%clk 0:04:14.7]} 12. e5 {[%clk
0:04:13]} 12... Nd5 {[%clk 0:04:10]} 13. Qa7 {[%clk 0:04:08.7]} 13... Nb6 {[%clk
0:04:03]} 14. Bd2 {[%clk 0:03:57.7]} 14... Bc5 {[%clk 0:03:37.6]} 15. Ba5 {[%clk
0:03:52.4]} 15... Re8 {[%clk 0:03:21]} 16. b4 {[%clk 0:03:48.6]} 16... Na4
{[%clk 0:03:13.1]} 17. Qa8 {[%clk 0:03:21.2]} 17... Bb6 {[%clk 0:03:01.7]} 18.
Bxb6 {[%clk 0:03:14.6]} 18... Qxb6 {[%clk 0:02:57.1]} 19. Qf3+ {[%clk
0:03:07.9]} 19... Kg7 {[%clk 0:02:55.5]} 20. Nd2 {[%clk 0:03:07.3]} 20... Rf8
{[%clk 0:02:53.7]} 21. Qg3 {[%clk 0:03:00.3]} 21... Nc3 {[%clk 0:02:48.7]} 22.
Rae1 {[%clk 0:02:37.4]} 22... Bb7 {[%clk 0:02:45.1]} 23. Qh4 {[%clk 0:02:30.4]}
23... Qc6 {[%clk 0:02:38.5]} 24. f3 {[%clk 0:02:25.7]} 24... Qd5 {[%clk
0:02:33.3]} 25. Qg5 {[%clk 0:01:50.7]} 25... Rf5 {[%clk 0:02:29.2]} 26. Qe7+
{[%clk 0:01:49.1]} 26... Rf7 {[%clk 0:02:28.2]} 27. Qd6 {[%clk 0:01:41.9]} 27...
Qxd6 {[%clk 0:02:20.2]} 28. exd6 {[%clk 0:01:41.8]} 28... Nxa2 {[%clk
0:02:12.7]} 29. Ne4 {[%clk 0:01:40.1]} 29... Nxb4 {[%clk 0:02:06.1]} 30. Nc5
{[%clk 0:01:38.9]} 30... Bc6 {[%clk 0:02:03.6]} 31. Ra1 {[%clk 0:01:33.3]} 31...
Nxc2 {[%clk 0:02:00.4]} 32. Rxa6 {[%clk 0:01:32]} 32... Ne3 {[%clk 0:01:26.5]}
33. Rb1 {[%clk 0:01:27.3]} 33... g5 {[%clk 0:01:24.6]} 34. Nxe6+ {[%clk
0:01:20.9]} 34... dxe6 {[%clk 0:00:59.3]} 35. Rxc6 {[%clk 0:01:19.1]} 35... g4
{[%clk 0:00:56.2]} 36. Rc7 {[%clk 0:01:10.2]} 36... gxf3 {[%clk 0:00:51.6]} 37.
gxf3 {[%clk 0:01:09]} 37... Nd5 {[%clk 0:00:48.4]} 38. Rxf7+ {[%clk 0:01:06.4]}
38... Kxf7 {[%clk 0:00:47.3]} 39. Rxb5 {[%clk 0:01:06]} 39... Ke8 {[%clk
0:00:45.5]} 40. Rb7 {[%clk 0:00:57.6]} 40... e5 {[%clk 0:00:42.6]} 41. Rxh7
{[%clk 0:00:52.6]} 41... Nf4 {[%clk 0:00:41.8]} 42. Re7+ {[%clk 0:00:47.4]}
42... Kd8 {[%clk 0:00:41]} 43. Rxe5 {[%clk 0:00:46.5]} 43... Nxd3 {[%clk
0:00:40.2]} 44. Re4 {[%clk 0:00:44.6]} 1-0

[Event "Live Chess"]
[Site "Chess.com"]
[Date "2024.06.02"]
[Round "-"]
[White "GEMdzq"]
[Black "upoe610"]
[Result "1-0"]
[WhiteElo "2296"]
[BlackElo "2117"]
[TimeControl "300"]
[EndTime "5:42:23 PDT"]
[Termination "GEMdzq won by resignation"]

1. e4 {[%clk 0:04:56.4]} 1... e5 {[%clk 0:04:55]} 2. d4 {[%clk 0:04:52.8]} 2...
exd4 {[%clk 0:04:54]} 3. c3 {[%clk 0:04:50.8]} 3... Qe7 {[%clk 0:04:52.9]} 4.
cxd4 {[%clk 0:04:48.8]} 4... Qxe4+ {[%clk 0:04:51.5]} 5. Be3 {[%clk 0:04:48]}
5... Nf6 {[%clk 0:04:50.2]} 6. Nc3 {[%clk 0:04:46.1]} 6... Bb4 {[%clk
0:04:49.3]} 7. Nf3 {[%clk 0:04:38]} 7... Nd5 {[%clk 0:04:47.9]} 8. Qd2 {[%clk
0:04:30.8]} 8... Nxe3 {[%clk 0:04:36.9]} 9. Nxe4 {[%clk 0:04:23]} 9... Bxd2+
{[%clk 0:04:34.9]} 10. Kxd2 {[%clk 0:04:19.6]} 10... Nxf1+ {[%clk 0:04:34]} 11.
Rhxf1 {[%clk 0:04:18.3]} 11... d5 {[%clk 0:04:33.2]} 12. Nc3 {[%clk 0:04:10.1]}
12... c6 {[%clk 0:04:31.3]} 13. Rfe1+ {[%clk 0:04:08.5]} 13... Be6 {[%clk
0:04:25.5]} 14. Ng5 {[%clk 0:04:05.8]} 14... Kd7 {[%clk 0:04:23.1]} 15. Nxe6
{[%clk 0:03:59.2]} 15... fxe6 {[%clk 0:04:22.1]} 16. Re5 {[%clk 0:03:54.5]}
16... Rf8 {[%clk 0:04:20.1]} 17. f3 {[%clk 0:03:53.1]} 17... Na6 {[%clk
0:04:19]} 18. Rae1 {[%clk 0:03:50.3]} 18... Nc7 {[%clk 0:04:18.1]} 19. Na4
{[%clk 0:03:46.3]} 19... b6 {[%clk 0:04:16.2]} 20. b4 {[%clk 0:03:44.8]} 20...
Rf4 {[%clk 0:04:13.9]} 21. Kd3 {[%clk 0:03:39.9]} 21... a5 {[%clk 0:04:12.3]}
22. Nxb6+ {[%clk 0:03:38.1]} 22... Kd6 {[%clk 0:04:10]} 23. Nxa8 {[%clk
0:03:36.7]} 23... Nxa8 {[%clk 0:04:09.9]} 24. Rxe6+ {[%clk 0:03:35.2]} 24... Kc7
{[%clk 0:04:08.7]} 25. Re7+ {[%clk 0:03:33.9]} 1-0